Workbook

Sheet Authorized Rev Req
A1: SDG&E Gas Revenue Requirement List
A2: Annual Period 2022
A3: Reporting Date: Quarter Ended December 31
A4: Submitted: December 1, 2022
B5: Revenue Requirement Date: | C5: 2022-01-01
B6: Advice Letter: | C6: AL 3046-G
A7: Filing Description | B7: Authority for Revenue Requirement as of 1/1/2022 | C7: Authorized Revenue Requirement ($000) | D7: Revenue Recovery Mechanism | E7: Balancing Account
A8: Safety Affordability Reliability Proceedings
A9: Total Allocated Base Margin | B9: D.19-09-051, A.22-05-016 | C9: 412393.9278 | D9: Allocated Base Margin | E9: N
A10: SCG Transport excl Core Storge & Load Balance $000 | B10: D.20-02-045, AL 3024-G | C10: 10101.54873 | D10: ECPT | E10: N
A11: SCG Core Seasonal Storage | B11: D.20-02-045, AL 3024-G | C11: 14374.70092 | D11: Seasonal Storage | E11: N
A12: SCG Load Balancing Allocated to ALL SDGE $000 | B12: D.20-02-045, AL 3024-G | C12: 9102.083783 | D12: ECPT | E12: N
A13: Pipeline Safety Enhancement Plan (PSEP) -Local T (subtracted from Base Margin and allocated here) | B13: D.19-09-051 | C13: 2576.6109 | D13: Local Transmission | E13: N
A14: LUAF | B14: D.20-02-045, AL 3024-G, AL 3046-G | C14: 3180.230322 | D14: 46% Res (LUAF, Other) | E14: N
A15: Company Use Gas: Other | B15: D.20-02-045, AL 3024-G, AL 3046-G | C15: 234.7866005 | D15: ECPT | E15: N
A16: SDG&E NGLAPBA | B16: AL 3046-G | C16: 983.2214892 | D16: EPAM | E16: N
A17: SDG&ENERBA - NGLAP Subacct | B17: AL 3046-G | C17: 1620.035133 | D17: EPAM | E17: N
A18: SDG&E PSEP - 2017 Forecast Application RevReq Capital Cost - Local Transmission | B18: D.20-02-045, AL 3024-G, AL 3046-G | C18: 52.10801562 | D18: Local Transmission | E18: N
A19: CFCA | B19: D.20-02-045, AL 3024-G, AL 3046-G | C19: 37541.47962 | D19: CFCA | E19: Y
A20: CFCA -NGV only | B20: D.20-02-045, AL 3024-G, AL 3046-G | C20: -210.7232916 | D20: Non-Residential | E20: Y
A21: CFCA - C&I shortfall only | B21: D.20-02-045, AL 3024-G, AL 3046-G | C21: 5444.026009 | D21: Non-Residential | E21: Y
A22: Hazardous Substance Cleanup Cost Acct HSCCA | B22: D.20-02-045, AL 3024-G, AL 3046-G | C22: 290.5117224 | D22: ECPT | E22: Y
A23: Master Meter Balancing Account (MMBA) | B23: D.20-02-045, AL 3024-G, AL 3046-G | C23: 10311.12029 | D23: EPAM | E23: Y
A24: PBOPBA | B24: D.20-02-045, AL 3024-G, AL 3046-G | C24: -623.5169218 | D24: EPAM | E24: Y
A25: Pension BA | B25: D.20-02-045, AL 3024-G, AL 3046-G | C25: -575.9313062 | D25: EPAM | E25: Y
A26: Safety Enhancement Balancing Account - Local Transmission | B26: D.20-02-045, AL 3024-G, AL 3046-G | C26: 3036.463065 | D26: Local Transmission | E26: Y
A27: Safety Enhancement Balancing Account - Distribution | B27: D.20-02-045, AL 3024-G, AL 3046-G | C27: 38688.93341 | D27: Distribution | E27: Y
A28: Rewards & Penalties Bal Acct RPBA | B28: D.20-02-045, AL 3024-G, AL 3046-G | C28: -127.866075 | D28: EPAM | E28: Y
A29: SGPMA - Rev Req for NEXT Year | B29: D.20-02-045, AL 3024-G, AL 3046-G | C29: 1545.235943 | D29: ECPT | E29: Y
A30: Integrated Transmission Margin ITBA | B30: D.20-02-045, AL 3024-G, AL 3046-G | C30: 24.5502864 | D30: ECPT | E30: Y
A31: Liability Insurance Premium Balancing Account (LIPBA) | B31: D.20-02-045, AL 3024-G, AL 3046-G | C31: 3038.097942 | D31: EPAM | E31: Y
A32: Residential Uncollectible Balancing Account | B32: D.20-02-045, AL 3024-G, AL 3046-G | C32: 5629.176086 | D32: EPAM | E32: Y
A33: NFCA -Margin Only | B33: D.20-02-045, AL 3024-G, AL 3046-G | C33: -7128.789413 | D33: Non-Residential | E33: Y
A34: NFCA -Nonmargin Other | B34: D.20-02-045, AL 3024-G, AL 3046-G | C34: 1705.221976 | D34: Non-Residential | E34: Y
A35: NFCA -Nonmargin SCG | B35: D.20-02-045, AL 3024-G, AL 3046-G | C35: -100.2470028 | D35: Non-Residential | E35: Y
A36: Minimum Bil/Customer Charge Revenue | B36: D.20-02-045, AL 3024-G, AL 3046-G | C36: 1816.44096 | D36: All Residential | E36: N
A37: Borrego Revenue | B37: D.20-02-045, AL 3024-G, AL 3046-G | C37: 64.57174233 | D37: All Residential | E37: N
A38: Employee Discount (Schd GR) | B38: D.20-02-045, AL 3024-G, AL 3046-G | C38: -367.20947 | D38: All Residential | E38: N
A39: SDFFD | B39: D.20-02-045, AL 3024-G, AL 3046-G | C39: 1986.901219 | D39: All Residential | E39: N
A40: TSO Balancing Account AL | B40: AL 3040-G | C40: =0 -> 0 | D40: EPAM | E40: Y
A41: CIS Balancing Account AL | B41: AL 3039-G | C41: =0 -> 0 | D41: EPAM | E41: Y
A43: Subtotal Safety Affordability Reliability | C43: =SUM(C9:C42) -> 556607.7005
A45: Public Policy Proceedings
A46: Green House Gas Balancing Account (GHGBA) - End User Revenue Requirement | B46: D.20-02-045, AL 3024-G, AL 3046-G | C46: 62728.32324 | D46: GHG End User | E46: N
A47: Green House Gas Balancing Account (GHGBA) - LUAF Revenue Requirement | B47: D.20-02-045, AL 3024-G, AL 3046-G | C47: 830.7284995 | D47: 46% Res (LUAF, Other) | E47: N
A48: AB32 Fees (subtracted from base margin and allocated here) | B48: D.19-09-051 | C48: 528.8540862 | D48: 46% Res (LUAF, Other) | E48: N
A49: Green House Gas Balancing Account (GHGBA) - Company Gas Compressor | B49: D.20-02-045, AL 3024-G, AL 3046-G | C49: -138.095361 | D49: ECPT | E49: Y
A50: Green House Gas Balancing Account (GHGBA) - End User | B50: D.20-02-045, AL 3024-G, AL 3046-G | C50: -5290.586719 | D50: GHG End User | E50: Y
A51: Green House Gas Balancing Account (GHGBA) - LUAF | B51: D.20-02-045, AL 3024-G, AL 3046-G | C51: -11.2522146 | D51: 46% Res (LUAF, Other) | E51: Y
A52: FERC Settlement Proceeds MA | B52: D.20-02-045, AL 3024-G, AL 3046-G | C52: 1.0229286 | D52: Non-Residential | E52: Y
A53: New Environmental Regulation Balancing Account (NERBA) - Admin Fees | B53: D.20-02-045, AL 3024-G, AL 3046-G | C53: 413.2631544 | D53: 46% Res (LUAF, Other) | E53: Y
A54: New Environmental Regulation Balancing Account (NERBA) - EPAM | B54: D.20-02-045, AL 3024-G, AL 3046-G | C54: 105.3616458 | D54: EPAM | E54: Y
A55: TLS Adjustment | B55: D.20-02-045, AL 3024-G, AL 3046-G | C55: 6681.993182 | D55: Non-Residential | E55: N
A56: CSI Thermal Program memoradum Account | B56: D.20-02-045, AL 3024-G, AL 3046-G | C56: 806.0677368 | D56: 46% Res (LUAF, Other) | E56: Y
A63: California Alternate Rates for Energy (CARE) - Funding | B63: AL 3027-G-A, D.21-06-015 | C63: 25613.072 | D63: Public Purpose Programs | E63: N
A64: California Alternate Rates for Energy (CARE) - Admin Expenses | B64: AL 3027-G-A, D.21-06-015 | C64: 727.283 | D64: Public Purpose Programs | E64: N
A65: California Alternate Rates for Energy (CARE) - Amortization | B65: AL 3027-G-A | C65: 1000 | D65: Public Purpose Programs | E65: Y
A66: Energy Savings Assistance (ESA/LIEE/DAP) | B66: AL 3027-G-A, D.21-06-015 | C66: 8041.195 | D66: Public Purpose Programs | E66: N
A67: Energy Efficiency | B67: AL 3027-G-A, AL 3035-G | C67: 15368.68175 | D67: Public Purpose Programs | E67: N
A68: RD&D | B68: AL 3027-G-A | C68: 1929.78072 | D68: Public Purpose Programs | E68: N
A69: Bureau Of Equalization BOE | B69: AL 3027-G-A | C69: 56.15999 | D69: Public Purpose Programs | E69: N
A75: Subtotal Public Policy | C75: =SUM(C46:C74) -> 119391.8526
A77: Procurement
A78: Procurement | B78: D.97-07-061 | C78: 372042.5758 | D78: Core Procurement
A84: Subtotal Procrement | C84: =SUM(C78:C83) -> 372042.5758
A86: Total Authorized Revenue | C86: =C43+C75+C84 -> 1048042.129

Sheet Incremental Rev Req
A1: SDG&E Gas Revenue Requirement List
A2: Annual Period 2022
A3: Reporting Date: Quarter Ended December 31
A4: Submitted: December 1, 2022
A6: Current Revenue Requirement ($000): | B6: ='Authorized Rev Req'!C86 -> 1048042.129
A7: Current Revenue Requirement Effective: | B7: ='Authorized Rev Req'!C5 -> 2022-01-01
A8: Approved Application(s), Implemented Since Jan 1 or To Be Implemented
A9: Filing Description | B9: Proceeding | C9: Authority for Revenue Requirement | D9: Authorized Revenue Requirement with FF&U ($000) | E9: Revenue Recovery Mechanism | F9: Authorized Revenue Requirement with FF&U ($000) - Breakout by Year
A10: Safety Affordability Reliability Proceedings | D10: =B7 -> 2022-01-01 | F10: 2022 | G10: 2023 | H10: 2024 | I10: 2025 | J10: 2026
A11: Total Allocated Base Margin | C11: D.19-09-051, A.22-05-016 | D11: =F11 -> 412393.9278 | E11: Allocated Base Margin | F11: 412393.9278 | G11: 504916 | H11: =G11 -> 504916 | I11: =H11 -> 504916 | J11: =I11 -> 504916
A12: SCG Transport excl Core Storge & Load Balance $000 | C12: D.20-02-045, AL 3024-G | D12: =F12 -> 10101.54873 | E12: ECPT | F12: 10101.54873 | G12: =F12 -> 10101.54873 | H12: =0 -> 0 | I12: =H12 -> 0 | J12: 0
A13: SCG Core Seasonal Storage | C13: D.20-02-045, AL 3024-G | D13: 14374.70092 | E13: Seasonal Storage | F13: 14374.70092 | G13: =F13 -> 14374.70092 | H13: =0 -> 0 | I13: 0 | J13: 0
A14: SCG Load Balancing Allocated to ALL SDGE $000 | C14: D.20-02-045, AL 3024-G | D14: 9102.083783 | E14: ECPT | F14: 9102.083783 | G14: 9102.083783 | H14: =0 -> 0 | I14: 0 | J14: 0
A15: Pipeline Safety Enhancement Plan (PSEP) -Local T (subtracted from Base Margin and allocated here) | C15: D.19-09-051 | D15: 2576.6109 | E15: Local Transmission | F15: 2576.6109 | G15: 2728.4247 | H15: =G15 -> 2728.4247 | I15: =0 -> 0 | J15: 0
A16: LUAF | C16: D.20-02-045, AL 3024-G, AL 3046-G | D16: 3180.230322 | E16: 46% Res (LUAF, Other) | F16: 3180.230322 | G16: =F16 -> 3180.230322 | H16: =0 -> 0 | I16: =H16 -> 0 | J16: 0
A17: Company Use Gas: Other | C17: D.20-02-045, AL 3024-G, AL 3046-G | D17: 234.7866005 | E17: ECPT | F17: 234.7866005 | G17: =F17 -> 234.7866005 | H17: =0 -> 0 | I17: 0 | J17: 0
A18: SDG&E NGLAPBA | C18: AL 3046-G | D18: 983.2214892 | E18: EPAM | F18: 983.2214892 | G18: 983.2214892 | H18: =0 -> 0 | I18: 0 | J18: 0
A19: SDG&ENERBA - NGLAP Subacct | C19: AL 3046-G | D19: 1620.035133 | E19: EPAM | F19: 1620.035133 | G19: 1620.035133 | H19: =0 -> 0 | I19: 0 | J19: 0
A20: SDG&E PSEP - 2017 Forecast Application RevReq Capital Cost - Local Transmission | C20: D.20-02-045, AL 3024-G, AL 3046-G | D20: 52.10801562 | E20: Local Transmission | F20: 52.10801562 | G20: 52.10801562 | H20: =0 -> 0 | I20: 0 | J20: 0
A21: CFCA | C21: D.20-02-045, AL 3024-G, AL 3046-G | D21: 37541.47962 | E21: CFCA | F21: 37541.47962 | G21: 37541.47962 | H21: =0 -> 0 | I21: 0 | J21: 0
A22: CFCA -NGV only | C22: D.20-02-045, AL 3024-G, AL 3046-G | D22: -210.7232916 | E22: Non-Residential | F22: -210.7232916 | G22: -210.7232916 | H22: =0 -> 0 | I22: 0 | J22: 0
A23: CFCA - C&I shortfall only | C23: D.20-02-045, AL 3024-G, AL 3046-G | D23: 5444.026009 | E23: Non-Residential | F23: 5444.026009 | G23: 5444.026009 | H23: =0 -> 0 | I23: 0 | J23: 0
A24: Hazardous Substance Cleanup Cost Acct HSCCA | C24: D.20-02-045, AL 3024-G, AL 3046-G | D24: 290.5117224 | E24: ECPT | F24: 290.5117224 | G24: 290.5117224 | H24: =0 -> 0 | I24: 0 | J24: 0
A25: Master Meter Balancing Account (MMBA) | C25: D.20-02-045, AL 3024-G, AL 3046-G | D25: 10311.12029 | E25: EPAM | F25: 10311.12029 | G25: 15077.546 | H25: 18705.7723 | I25: 21791.8616 | J25: 24855.4471
A26: PBOPBA | C26: D.20-02-045, AL 3024-G, AL 3046-G | D26: -623.5169218 | E26: EPAM | F26: -623.5169218 | G26: =F26 -> -623.5169218 | H26: =0 -> 0 | I26: =H26 -> 0 | J26: 0
A27: Pension BA | C27: D.20-02-045, AL 3024-G, AL 3046-G | D27: -575.9313062 | E27: EPAM | F27: -575.9313062 | G27: =F27 -> -575.9313062 | H27: =0 -> 0 | I27: 0 | J27: 0
A28: Safety Enhancement Balancing Account - Local Transmission | C28: D.20-02-045, AL 3024-G, AL 3046-G | D28: 3036.463065 | E28: Local Transmission | F28: 3036.463065 | G28: 3036.463065 | H28: =0 -> 0 | I28: 0 | J28: 0
A29: Safety Enhancement Balancing Account - Distribution | C29: D.20-02-045, AL 3024-G, AL 3046-G | D29: 38688.93341 | E29: Distribution | F29: 38688.93341 | G29: 38688.93341 | H29: =0 -> 0 | I29: 0 | J29: 0
A30: Rewards & Penalties Bal Acct RPBA | C30: D.20-02-045, AL 3024-G, AL 3046-G | D30: -127.866075 | E30: EPAM | F30: -127.866075 | G30: -127.866075 | H30: =0 -> 0 | I30: 0 | J30: 0
A31: SGPMA - Rev Req for NEXT Year | C31: D.20-02-045, AL 3024-G, AL 3046-G | D31: 1545.235943 | E31: ECPT | F31: 1545.235943 | G31: 1545.235943 | H31: =0 -> 0 | I31: 0 | J31: 0
A32: Integrated Transmission Margin ITBA | C32: D.20-02-045, AL 3024-G, AL 3046-G | D32: 24.5502864 | E32: ECPT | F32: 24.5502864 | G32: 24.5502864 | H32: =0 -> 0 | I32: 0 | J32: 0
A33: Liability Insurance Premium Balancing Account (LIPBA) | C33: D.20-02-045, AL 3024-G, AL 3046-G | D33: 3038.097942 | E33: EPAM | F33: 3038.097942 | G33: 3038.097942 | H33: =0 -> 0 | I33: 0 | J33: 0
A34: Residential Uncollectible Balancing Account | C34: D.20-02-045, AL 3024-G, AL 3046-G | D34: 5629.176086 | E34: EPAM | F34: 5629.176086 | G34: 5629.176086 | H34: =0 -> 0 | I34: 0 | J34: 0
A35: NFCA -Margin Only | C35: D.20-02-045, AL 3024-G, AL 3046-G | D35: -7128.789413 | E35: Non-Residential | F35: -7128.789413 | G35: -7128.789413 | H35: =0 -> 0 | I35: 0 | J35: 0
A36: NFCA -Nonmargin Other | C36: D.20-02-045, AL 3024-G, AL 3046-G | D36: 1705.221976 | E36: Non-Residential | F36: 1705.221976 | G36: 1705.221976 | H36: =0 -> 0 | I36: 0 | J36: 0
A37: NFCA -Nonmargin SCG | C37: D.20-02-045, AL 3024-G, AL 3046-G | D37: -100.2470028 | E37: Non-Residential | F37: -100.2470028 | G37: -100.2470028 | H37: =0 -> 0 | I37: 0 | J37: 0
A38: Minimum Bil/Customer Charge Revenue | C38: D.20-02-045, AL 3024-G, AL 3046-G | D38: 1816.44096 | E38: All Residential | F38: 1816.44096 | G38: 1816.44096 | H38: =0 -> 0 | I38: 0 | J38: 0
A39: Borrego Revenue | C39: D.20-02-045, AL 3024-G, AL 3046-G | D39: 64.57174233 | E39: All Residential | F39: 64.57174233 | G39: 64.57174233 | H39: =0 -> 0 | I39: 0 | J39: 0
A40: Employee Discount (Schd GR) | C40: D.20-02-045, AL 3024-G, AL 3046-G | D40: -367.20947 | E40: All Residential | F40: -367.20947 | G40: -367.20947 | H40: =0 -> 0 | I40: 0 | J40: 0
A41: SDFFD | C41: D.20-02-045, AL 3024-G, AL 3046-G | D41: 1986.901219 | E41: All Residential | F41: 1986.901219 | G41: 1986.901219 | H41: =0 -> 0 | I41: 0 | J41: 0
A42: TSO Balancing Account AL | C42: AL 3040-G | D42: 0 | E42: EPAM | F42: 0 | G42: =7058.15 -> 7058.15 | H42: =3529.075 -> 3529.075 | I42: =0 -> 0 | J42: =I42 -> 0
A43: CIS Balancing Account AL | C43: AL 3039-G | D43: 0 | E43: EPAM | F43: 0 | G43: 17168 | H43: 11448.492 | I43: =0 -> 0 | J43: 0
A45: Public Policy Proceedings
A46: Green House Gas Balancing Account (GHGBA) - End User Revenue Requirement | C46: D.20-02-045, AL 3024-G, AL 3046-G | D46: 62728.32324 | E46: GHG End User | F46: 62728.32324 | G46: =F46 -> 62728.32324 | H46: =0 -> 0 | I46: =H46*1.121 -> 0 | J46: 0
A47: Green House Gas Balancing Account (GHGBA) - LUAF Revenue Requirement | C47: D.20-02-045, AL 3024-G, AL 3046-G | D47: 830.7284995 | E47: 46% Res (LUAF, Other) | F47: 830.7284995 | G47: =F47 -> 830.7284995 | H47: =0 -> 0 | I47: =H47 -> 0 | J47: 0
A48: AB32 Fees (subtracted from base margin and allocated here) | C48: D.19-09-051 | D48: 528.8540862 | E48: 46% Res (LUAF, Other) | F48: 528.8540862 | G48: 528.8540862 | H48: =0 -> 0 | I48: 0 | J48: 0
A49: Green House Gas Balancing Account (GHGBA) - Company Gas Compressor | C49: D.20-02-045, AL 3024-G, AL 3046-G | D49: -138.095361 | E49: ECPT | F49: -138.095361 | G49: -138.095361 | H49: =0 -> 0 | I49: 0 | J49: 0
A50: Green House Gas Balancing Account (GHGBA) - End User | C50: D.20-02-045, AL 3024-G, AL 3046-G | D50: -5290.586719 | E50: GHG End User | F50: -5290.586719 | G50: -5290.586719 | H50: =0 -> 0 | I50: 0 | J50: 0
A51: Green House Gas Balancing Account (GHGBA) - LUAF | C51: D.20-02-045, AL 3024-G, AL 3046-G | D51: -11.2522146 | E51: 46% Res (LUAF, Other) | F51: -11.2522146 | G51: -11.2522146 | H51: =0 -> 0 | I51: 0 | J51: 0
A52: FERC Settlement Proceeds MA | C52: D.20-02-045, AL 3024-G, AL 3046-G | D52: 1.0229286 | E52: Non-Residential | F52: 1.0229286 | G52: 1.0229286 | H52: =0 -> 0 | I52: 0 | J52: 0
A53: New Environmental Regulation Balancing Account (NERBA) - Admin Fees | C53: D.20-02-045, AL 3024-G, AL 3046-G | D53: 413.2631544 | E53: 46% Res (LUAF, Other) | F53: 413.2631544 | G53: 413.2631544 | H53: =0 -> 0 | I53: 0 | J53: 0
A54: New Environmental Regulation Balancing Account (NERBA) - EPAM | C54: D.20-02-045, AL 3024-G, AL 3046-G | D54: 105.3616458 | E54: EPAM | F54: 105.3616458 | G54: 105.3616458 | H54: =0 -> 0 | I54: 0 | J54: 0
A55: TLS Adjustment | C55: D.20-02-045, AL 3024-G, AL 3046-G | D55: 6681.993182 | E55: Non-Residential | F55: 6681.993182 | G55: 6681.993182 | H55: =0 -> 0 | I55: 0 | J55: 0
A56: CSI Thermal Program memoradum Account | C56: D.20-02-045, AL 3024-G, AL 3046-G | D56: 806.0677368 | E56: 46% Res (LUAF, Other) | F56: 806.0677368 | G56: 806.0677368 | H56: =0 -> 0 | I56: 0 | J56: 0
D57: 0
D58: 0
D59: 0
D60: 0
D61: 0
A62: California Alternate Rates for Energy (CARE) - Funding | C62: AL 3027-G-A, D.21-06-015 | D62: 25613.072 | E62: Public Purpose Programs | F62: 25613.072 | G62: 11537.458 | H62: 11652.832 | I62: 11769.36 | J62: 11887.054
A63: California Alternate Rates for Energy (CARE) - Admin Expenses | C63: AL 3027-G-A, D.21-06-015 | D63: 727.283 | E63: Public Purpose Programs | F63: 727.283 | G63: 761.46983 | H63: 771.47048 | I63: 813.9527 | J63: 814.18139
A64: California Alternate Rates for Energy (CARE) - Amortization | C64: AL 3027-G-A | D64: 1000 | E64: Public Purpose Programs | F64: 1000 | G64: =F64 -> 1000 | H64: =0 -> 0 | I64: =H64 -> 0 | J64: =I64 -> 0
A65: Energy Savings Assistance (ESA/LIEE/DAP) | C65: AL 3027-G-A, D.21-06-015 | D65: 8041.195 | E65: Public Purpose Programs | F65: 8041.195 | G65: 12315.64164 | H65: 13505.58822 | I65: 14340.98863 | J65: 15138.70932
A66: Energy Efficiency | C66: AL 3027-G-A, AL 3035-G | D66: 15368.68175 | E66: Public Purpose Programs | F66: 15368.68175 | G66: 11521.57479 | H66: =G66 -> 11521.57479 | I66: =H66 -> 11521.57479 | J66: =I66 -> 11521.57479
A67: RD&D | C67: AL 3027-G-A | D67: 1929.78072 | E67: Public Purpose Programs | F67: 1929.78072 | G67: =F67 -> 1929.78072 | H67: =0 -> 0 | I67: =H67 -> 0 | J67: 0
A68: Bureau Of Equalization BOE | C68: AL 3027-G-A | D68: 56.15999 | E68: Public Purpose Programs | F68: 56.15999 | G68: =F68 -> 56.15999 | H68: =0 -> 0 | I68: 0 | J68: 0
A72: Procurement | C72: D.97-07-061 | D72: =F72 -> 372042.5758 | E72: Core Procurement | F72: 372042.5758 | G72: =0 -> 0 | H72: =G72 -> 0 | I72: =H72 -> 0 | J72: =I72 -> 0
A76: Total Approved, Implemented Since Jan 1 or To Be Implemented | D76: =SUM(D11:D75) -> 1048042.129 | F76: =SUM(F11:F75) -> 1048042.129 | G76: =SUM(G11:G75) -> 784051.9273 | H76: =SUM(H11:H75) -> 578779.2295 | I76: =SUM(I11:I75) -> 565153.7377 | J76: =SUM(J11:J75) -> 569132.9666
A78: CPUC Fee | E78: CPUC Fee | F78: 0.00577
A81: Pending Application(s) Not Yet Approved
A82: Filing Description | B82: Proceeding | C82: Basis of Revenue Requirement Forecast: Application, Amended Application , Amended Testimony, Proposed Settlement Agreement, Proposed Decision | D82: Proposed Revenue Requirement with FF&U ($000) | E82: Proposed Revenue Recovery Mechanism | F82: Incremental Revenue Requirement with FF&U ($000) - Breakout by Year
A83: Safety Affordability Reliability Proceedings | F83: 2022 | G83: 2023 | H83: 2024 | I83: 2025 | J83: 2026
A84: 2024 GRC Application | B84: A.22-05-016 | C84: Application | D84: =SUM(F84:J84) -> 402240 | E84: Allocated Base Margin | H84: =565242-H11 -> 60326 | I84: =626840-I11 -> 121924 | J84: =724906-J11 -> 219990
A85: Pipeline Safety Enhancement Plan (PSEP) -Local T | B85: A.22-05-016 | C85: Application | D85: -706.4247 | E85: Local Transmission | H85: =2022-H15 -> -706.4247
A86: TIMPBA | B86: A.22-05-016 | C86: Application | D86: 7864 | E86: Local Transmission | H86: 7864
A87: Pipeline Safety Enhancement Plan (PSEP) - High Pressure Distribution | B87: A.22-05-016 | C87: Application | D87: 40844 | E87: Distribution | H87: 40844
A88: Catastrophic Event Memorandum Account (CEMA) | B88: A.22-10-021 | C88: Application | D88: 7122 | E88: EPAM | H88: 7122
D89: 0 | G89: 0
D90: 0
A91: Public Policy Proceedings | D91: 0
A92: SDG&E Cost of Capital Application | B92: A.22-04-012 | C92: Application | D92: 5480 | E92: EPAM | G92: =1370 -> 1370 | H92: =1370 -> 1370 | I92: =1370 -> 1370 | J92: =1370 -> 1370
A93: Triennial Cost Allocation Proceeding | B93: A. 22-09-015 | C93: Application | D93: 0 | E93: EPAM | G93: 0 | H93: 0 | I93: 0 | J93: 0
A94: Natural Gas Leak Abatement | B94: AL 3071-G | C94: Advice Letter | D94: 58899 | E94: EPAM | G94: 13170 | H94: 15243 | I94: 15243 | J94: 15243
A95: Energy Efficiency | B95: A.22-03-005 | C95: Application | D95: 47840.29451 | E95: Public Purpose Programs | H95: 15145.37304 | I95: 16560.78862 | J95: 16134.13286
A96: PPPS Filing | B96: AL 3137-G | C96: Advice Letter | D96: 9355.155815 | E96: Public Purpose Programs | G96: 9355.155815
D97: 0
D98: 0
D99: 0
A100: Regulatory Account Update | B100: AL 3129-G | C100: Advice Letter | D100: 4556.661692 | E100: Seasonal Storage | G100: 4556.661692
A101: Regulatory Account Update | B101: AL 3129-G | C101: Advice Letter | D101: 82.42113209 | E101: Local Transmission | G101: 82.42113209
A102: Regulatory Account Update | B102: AL 3129-G | C102: Advice Letter | D102: 2326.954297 | E102: 46% Res (LUAF, Other) | G102: 2326.954297
A103: Regulatory Account Update | B103: AL 3129-G | C103: Advice Letter | D103: 18091.98124 | E103: CFCA | G103: 18091.98124
A104: Regulatory Account Update | B104: AL 3129-G | C104: Advice Letter | D104: 791.6305978 | E104: Distribution | G104: 791.6305978
A105: Regulatory Account Update | B105: AL 3129-G | C105: Advice Letter | D105: -9352.950985 | E105: Non-Residential | G105: -9352.950985
A106: Regulatory Account Update | B106: AL 3129-G | C106: Advice Letter | D106: 225.9575205 | E106: All Residential | G106: 225.9575205
A107: Regulatory Account Update | B107: AL 3129-G | C107: Advice Letter | D107: -1764.542276 | E107: GHG End User | G107: -1764.542276
A108: Regulatory Account Update | B108: AL 3129-G | C108: Advice Letter | D108: 16573.74887 | E108: ECPT | G108: 16573.74887
A109: Regulatory Account Update | B109: AL 3129-G | C109: Advice Letter | D109: 8327.310263 | E109: EPAM | G109: 8327.310263
A110: Regulatory Account Update | B110: AL 3129-G | C110: Advice Letter | D110: -85487.42413 | E110: Allocated Base Margin | G110: -85487.42413
D111: 0
D112: 0
A113: Total Pending, Filed but not Approved | D113: =SUM(D84:D112) -> 533309.7739 | F113: =SUM(F84:F112) -> 0 | G113: =SUM(G84:G112) -> -21733.09596 | H113: =SUM(H84:H112) -> 147207.9483 | I113: 155097.7886 | J113: 252737.1329
